lending/lending_fUSD_20240110
["ID","MTS","AMOUNT","RATE_DAILY","PERIOD"]
[311067789,1704891225609,-6582.51,0.00035342,2]
[311067790,1704891225619,-548.8,0.00035342,2]
[311067791,1704891225630,-1032.31,0.00035342,2]
[311067792,1704891225640,-3983.8,0.00035342,2]
[311067793,1704891225650,-541.81,0.00035342,2]
[311067794,1704891225660,-3506.94,0.00035342,2]
[311067795,1704891225670,-1408.06,0.00035342,2]
[311067796,1704891225680,-1081.29,0.00035342,2]
[311067797,1704891225689,-1527.61,0.00035342,2]
[311067798,1704891225699,-8785.85,0.00035342,2]
[311067799,1704891225709,-660.7,0.00035342,2]
[311067800,1704891225719,-2768.41,0.00035342,2]
[311067801,1704891225728,-2858.46,0.00035342,2]
[311067802,1704891225742,-2292.41,0.00035342,2]
[311067803,1704891225752,-746.91,0.00035342,2]
[311067804,1704891225762,-4131.39,0.00035342,2]
[311067805,1704891225771,-2876.26,0.00035342,2]
[311067806,1704891225781,-2170.96,0.00035342,2]
[311067807,1704891225791,-2634.97,0.00035342,2]
[311067808,1704891225801,-1142.75,0.00035342,2]
[311067809,1704891225811,-1716.45,0.00035342,2]
[311067810,1704891225822,-1039.47,0.00035342,2]
[311067811,1704891225832,-3670.86,0.00035342,2]
[311067812,1704891225843,-602.26,0.00035342,2]
[311067813,1704891225852,-614.41,0.00035342,2]
[311067814,1704891225862,-2195.0,0.00035342,2]
[311067815,1704891225871,-1673.5,0.00035342,2]
[311067816,1704891225881,-2390.42,0.00035342,2]
[311067817,1704891225891,-1423.00509077,0.00035342,2]
[311067818,1704891226820,-500.0,0.00032602,2]
[311067819,1704891226829,-5.42802789,0.00035342,2]
[311067820,1704891226842,-555.60799678,0.00035342,2]
[311067821,1704891226858,-1166.05600431,0.00035342,2]
[311067822,1704891226870,-501.38288025,0.00035342,2]
[311067823,1704891226880,-1199.26854354,0.00035342,2]
[311067824,1704891226892,-4191.11145646,0.00035342,2]
[311067825,1704891226902,-215.45302745,0.00035342,2]
[311067826,1704891226935,-37947.62697255,0.00035342,2]
[311067827,1704891226946,-500.0,0.00035342,2]
[311067828,1704891226955,-1305.31,0.00035342,2]
[311067829,1704891226965,-1396.89,0.00035342,2]
[311067830,1704891226975,-1467.77,0.00035342,2]
[311067831,1704891226989,-1697.53,0.00035342,2]
[311067832,1704891226998,-14627.59,0.00035342,2]
[311067833,1704891227008,-2605.66,0.00035342,2]
[311067834,1704891227018,-1698.7,0.00035342,2]
[311067835,1704891227028,-601.21,0.00035342,2]
[311067836,1704891227039,-412.55478767,0.00035342,2]
[311067837,1704891227049,-3381.31,0.00035342,2]
[311067838,1704891227059,-3094.77,0.00035342,2]
[311067839,1704891227068,-999.48,0.00035342,2]
[311067840,1704891227078,-30669.33693813,0.00035342,2]
[311067841,1704891227090,-320.81306187,0.00035342,2]
[311067842,1704891227099,-607.81,0.00035342,2]
[311067843,1704891227109,-1050.89547677,0.00035342,2]
[311067844,1704891227121,-450.17,0.00035342,2]
[311067845,1704891235570,150.0,0.00021,2]
[311067846,1704891237890,535.28607188,0.0001,2]
[311067847,1704891239068,8000.0,0.00011,2]
[311067848,1704891241916,266.47788631,9.999e-05,2]
[311067849,1704891242085,16078.00336188,6.94e-05,2]
[311067850,1704891242872,5606.82893329,0.000155,2]
[311067851,1704891248350,1878.41598421,0.00015,2]
[311067852,1704891249272,3260.16152946,0.00010999,2]
[311067853,1704891411981,638.5,0.00021432,2]
[311067854,1704891440166,40603.33,0.00022361,2]
[311067855,1704891509485,832.8,0.0002221,2]
[311067856,1704891519266,315.06,0.0002221,2]
[311067857,1704891519344,152.45,0.0002221,2]
[311067858,1704891547315,200.0,0.00022331,2]
[311067859,1704891608741,630.04,0.0002221,2]
[311067860,1704891625568,7175.57,0.00031,30]
[311067861,1704891676023,23900.0,0.0002221,2]
[311067862,1704891679204,156.82,0.00022432,2]
[311067863,1704891716352,169.7,0.0002233,2]
[311067864,1704891754757,150.0,0.0002221,2]
[311067865,1704891790129,200.0,0.0002221,2]
[311067866,1704891791059,-523.88128077,0.00022586,2]
[311067867,1704891792624,26.11871923,0.00022585,2]
[311067868,1704891792652,128.88128077,0.00022585,2]
[311067869,1704891800809,421.11871923,0.00022586,2]
[311067870,1704891800835,550.0,0.00022586,2]
[311067871,1704891802824,-550.0,0.00022586,2]
[311067872,1704891808874,-550.0,0.00022586,2]
[311067873,1704891812132,-550.0,0.00022586,2]
[311067874,1704891813406,-550.0,0.00022586,2]
[311067875,1704891814251,-14.77966712,0.00022586,2]
[311067876,1704891814278,-535.22033288,0.00022587,2]
[311067877,1704891815286,-22.70955195,0.00022587,2]
[311067878,1704891815316,-150.0,0.0002259,2]
[311067879,1704891815344,-377.29044805,0.00022591,2]
[311067880,1704891815474,-550.0,0.00022591,2]
[311067881,1704891821801,-550.0,0.00022591,2]
[311067882,1704891830811,3185.89838635,0.00021837,2]
[311067883,1704891847489,-2000.0,0.00022591,2]
[311067884,1704891848103,-2000.0,0.00022591,2]
[311067885,1704891848754,-2000.0,0.00022591,2]
[311067886,1704891848797,3185.89838635,0.00021837,2]
[311067887,1704891849271,-2000.0,0.00022591,2]
[311067888,1704891849708,-2000.0,0.00022591,2]
[311067889,1704891850143,-2000.0,0.00022591,2]
[311067890,1704891850928,-2000.0,0.00022591,2]
[311067891,1704891851198,-2000.0,0.00022591,2]
[311067892,1704891851635,489.46,0.00021,2]
[311067893,1704891851735,-2000.0,0.00022591,2]
[311067894,1704891852269,-2000.0,0.00022591,2]
[311067895,1704891852805,-2000.0,0.00022591,2]
[311067896,1704891860815,-1698.75656737,0.00022591,2]
[311067897,1704891863239,250.0,0.0002221,2]
[311067898,1704891870796,87.84343263,0.00021837,2]
[311067899,1704891870815,1386.1722744,0.00021837,2]
[311067900,1704891879386,2000.0,0.00022267,2]
[311067901,1704891892907,156.24,0.0002231,2]
[311067902,1704891893139,156.24,0.00022416,2]
[311067903,1704891893343,676.39,0.00020226,2]
[311067904,1704891893550,676.39,0.0002249,2]
[311067905,1704891897585,360.89305666,0.0002221,2]
[311067906,1704891938112,166.68,0.00021906,2]
[311067907,1704891947981,333.76,0.00021906,2]
[311067908,1704891979064,-155.0,0.00022518,2]
[311067909,1704891979101,-728.0,0.00022519,2]
[311067910,1704891979129,-1117.0,0.0002252,2]
[311067911,1704891980124,-2000.0,0.0002252,2]
[311067912,1704891980665,-972.98710434,0.0002252,2]
[311067913,1704891980695,-156.24,0.00022522,2]
[311067914,1704891980720,-244.2798206,0.00022586,2]
[311067915,1704891980744,-626.49307506,0.00022586,2]
[311067916,1704891981228,-2000.0,0.00022586,2]
[311067917,1704891981763,-772.99292514,0.00022586,2]
[311067918,1704891981787,-150.0,0.00022588,2]
[311067919,1704891981811,-1077.00707486,0.00022589,2]
[311067920,1704891983249,-2000.0,0.00022589,2]
[311067921,1704891983341,-2000.0,0.00022589,2]
[311067922,1704891983513,-2000.0,0.00022589,2]
[311067923,1704891983983,-2000.0,0.00022589,2]
[311067924,1704891984559,-2000.0,0.00022589,2]
[311067925,1704891985107,-2000.0,0.00022589,2]
[311067926,1704891985544,-2000.0,0.00022589,2]
[311067927,1704891985971,-2000.0,0.00022589,2]
[311067928,1704891986490,-2000.0,0.00022589,2]
[311067929,1704891987006,-2000.0,0.00022589,2]
[311067930,1704891987501,-2000.0,0.00022589,2]
[311067931,1704891988009,-2000.0,0.00022589,2]
[311067932,1704891988543,-2000.0,0.00022589,2]
[311067933,1704891989047,-2000.0,0.00022589,2]
[311067934,1704891989585,-2000.0,0.00022589,2]
[311067935,1704891990120,-2000.0,0.00022589,2]
[311067936,1704891990674,-2000.0,0.00022589,2]
[311067937,1704891991218,-2000.0,0.00022589,2]
[311067938,1704891991721,-2000.0,0.00022589,2]
[311067939,1704891992267,-1990.63101348,0.00022589,2]
[311067940,1704891992288,-9.36898652,0.0002259,2]
[311067942,1704891999193,-990.63101348,0.0002259,2]
[311067943,1704891999217,-1000.0,0.0002259,2]
[311067944,1704891999242,-9.36898652,0.0002259,2]
[311067945,1704891999748,-990.63101348,0.0002259,2]
[311067946,1704891999772,-1000.0,0.0002259,2]
[311067947,1704891999795,-9.36898652,0.0002259,2]
[311067948,1704892000468,-990.63101348,0.0002259,2]
[311067949,1704892000492,-156.24,0.00022627,2]
[311067950,1704892000515,-252.37420242,0.00022633,2]
[311067951,1704892000539,-156.24,0.00022733,2]
[311067952,1704892000563,-444.5147841,0.00022747,2]
[311067953,1704892001081,-80.93919405,0.00022747,2]
[311067954,1704892001102,-1500.0,0.00022747,2]
[311067955,1704892001123,-419.06080595,0.00022747,2]
[311067956,1704892002098,-220.1761627,0.00022747,2]
[311067957,1704892002119,-277.96277619,0.00022747,2]
[311067958,1704892002145,-500.54284243,0.00022747,2]
[311067959,1704892002165,-914.75035507,0.00022747,2]
[311067960,1704892002187,-86.56786361,0.00022747,2]
[311067961,1704892003744,-68.43213639,0.00022747,2]
[311067962,1704892003766,-1931.56786361,0.00022747,2]
[311067963,1704892004250,-2000.0,0.00022747,2]
[311067964,1704892005309,-1160.59977305,0.00022747,2]
[311067965,1704892005330,-757.56211278,0.00022747,2]
[311067966,1704892005351,-81.83811417,0.00022747,2]
[311067967,1704892025114,-180.82762916,0.00022724,2]
[311067968,1704892025135,-73.16188583,0.00022747,2]
[311067969,1704892025159,-205.4942016,0.00022747,2]
[311067970,1704892025180,-547.58235551,0.00022747,2]
[311067971,1704892025201,-992.9339279,0.00022747,2]
[311067972,1704892025810,-837.46149892,0.00022747,2]
[311067973,1704892025831,-1043.80845818,0.00022747,2]
[311067974,1704892025931,118.7300429,0.00021906,2]
[311067975,1704892025952,244.78583809,0.00021906,2]
[311067976,1704892026707,-150.0,0.00022724,2]
[311067977,1704892027376,382.21367003,0.00022747,2]
[311067978,1704892027507,400.0,0.00022747,2]
[311067979,1704892029042,1067.78632997,0.00022746,2]
[311067980,1704892029064,2000.0,0.00022746,2]
[311067981,1704892029354,-1560.72458377,0.00022746,2]
[311067982,1704892031627,268.77411961,0.00022747,2]
[311067983,1704892032988,170.50129662,0.00022747,2]
[311067984,1704892042626,467.74,0.0002237,2]
[311067985,1704892044693,277.24,0.00022071,2]
[311067986,1704892085951,315.02,0.00022072,2]
[311067987,1704892100787,1361.32,0.00022281,2]
[311067988,1704892106458,363.51588099,0.00022071,2]
[311067989,1704892120480,363.51588099,0.00022071,2]
[311067990,1704892138456,353.02458367,0.00022071,2]
[311067991,1704892143571,168.58,0.00022105,2]
[311067992,1704892188992,1000.0,0.00022288,2]
[311067993,1704892213118,1000.0,0.00022288,2]
[311067994,1704892226987,1000.0,0.00022288,2]
[311068007,1704892231944,-155.0,0.00022645,2]
[311068008,1704892231954,-159.00791916,0.00022646,2]
[311068009,1704892231963,-133.30208084,0.00022667,2]
[311068010,1704892231980,-25.70583823,0.00022667,2]
[311068011,1704892231990,-159.00791907,0.00022688,2]
[311068012,1704892231999,-159.00791907,0.0002271,2]
[311068013,1704892232008,-159.00791907,0.00022731,2]
[311068014,1704892232018,-150.0,0.00022745,2]
[311068015,1704892232027,-1778.7137588,0.00022745,2]
[311068016,1704892232040,-3491.60851271,0.00022745,2]
[311068017,1704892232049,-10519.86490413,0.00022746,2]
[311068018,1704892232059,-31.8608208,0.00022747,2]
[311068020,1704892232072,-345.47752639,0.00022747,2]
[311068022,1704892232081,-386.38055922,0.00022747,2]
[311068024,1704892232091,-292.07537104,0.00022747,2]
[311068026,1704892232101,-428.79564639,0.00022747,2]
[311068028,1704892232110,-1042.38109743,0.00022747,2]
[311068029,1704892232121,-2300.22422261,0.00022747,2]
[311068031,1704892232130,-493.26131547,0.00022747,2]
[311068034,1704892232140,-156.24,0.00022839,2]
[311068035,1704892232149,-212.83773827,0.0002288,2]
[311068038,1704892232158,-176.2402856,0.0002288,2]
[311068041,1704892232168,-192.22393981,0.0002288,2]
[311068043,1704892232178,-240.02926711,0.0002288,2]
[311068045,1704892232187,-392.30250116,0.0002288,2]
[311068048,1704892232196,-172.04,0.00022885,2]
[311068050,1704892232205,-499.99,0.00022885,2]
[311068052,1704892232215,-2932.76,0.00022885,2]
[311068055,1704892232224,-192.22393977,0.00022885,2]
[311068058,1704892232244,-192.22393977,0.0002289,2]
[311068060,1704892232255,-392.30250116,0.0002289,2]
[311068062,1704892232265,-192.22393977,0.00022895,2]
[311068063,1704892232275,-967.32,0.000229,2]
[311068064,1704892232285,-192.22393977,0.000229,2]
[311068065,1704892232296,-3358.51759093,0.000229,2]
[311068066,1704892232306,-392.30250116,0.000229,2]
[311068067,1704892232318,-186.26193995,0.000229,2]
[311068068,1704892232328,-156.24,0.00022945,2]
[311068069,1704892232339,-209.87174499,0.00022969,2]
[311068070,1704892232348,-215.11753073,0.00022976,2]
[311068071,1704892232359,-1278.69740702,0.00022977,2]
[311068072,1704892232369,-208.49553179,0.00022977,2]
[311068073,1704892232380,-992.10827887,0.00022977,4]
[311068074,1704892232390,-452.81,0.00022977,2]
[311068075,1704892232401,-486.74627673,0.00022978,2]
[311068076,1704892232410,-192510.35102228,0.00022979,2]
[311068077,1704892232425,-5079.4325782,0.00022979,2]
[311068082,1704892233090,-99026.91374136,0.00022979,2]
[311068083,1704892233102,-311.44051922,0.00022979,2]
[311068084,1704892233115,-358.1422689,0.00022979,2]
[311068085,1704892233148,-943.93187355,0.00022979,2]
[311068086,1704892233161,-481.13236969,0.00022979,2]
[311068087,1704892233186,-447281.79587806,0.00022979,2]
[311068088,1704892233199,-2251.995,0.00022979,2]
[311068089,1704892233211,-4474.47,0.00022979,2]
[311068090,1704892233223,-10701.64119828,0.00022979,2]
[311068091,1704892233237,-4485.47709356,0.00022979,2]
[311068092,1704892233296,-131802.44654919,0.00022979,2]
[311068093,1704892233308,-7907.71721126,0.00022979,2]
[311068094,1704892233326,-45053.06702164,0.00022979,2]
[311068095,1704892233338,-2805.78287957,0.00022979,2]
[311068096,1704892233357,-2230.05,0.00022979,2]
[311068097,1704892233368,-1787.98781375,0.00022979,2]
[311068098,1704892233380,-3698.8629852,0.00022979,2]
[311068099,1704892233392,-89747.31386964,0.00022979,2]
[311068100,1704892233402,-16947.32555393,0.0002298,2]
[311068101,1704892233455,-590.0394705,0.0002298,2]
[311068102,1704892234059,23900.0,0.00022238,2]
[311068103,1704892234152,200.0,0.00021975,2]
[311068118,1704892238415,-159.00791907,0.00022752,2]
[311068119,1704892238424,-104.40910752,0.0002288,2]
[311068120,1704892238436,-70.25291359,0.0002288,2]
[311068121,1704892238446,-178.23332526,0.000229,2]
[311068122,1704892238455,-130.69280104,0.000229,2]
[311068123,1704892238467,-123.69076849,0.000229,2]
[311068124,1704892238476,-1606.90097748,0.0002298,2]
[311068125,1704892238487,-2362.88588749,0.0002298,2]
[311068126,1704892238498,-9048.84517172,0.0002298,2]
[311068127,1704892238509,-962.97813387,0.0002298,2]
[311068128,1704892238552,-276.44824864,0.0002298,2]
[311068129,1704892238567,-1873.93215532,0.0002298,2]
[311068130,1704892238582,-1021.61871924,0.0002298,2]
[311068131,1704892238592,-257.60914271,0.0002298,2]
[311068132,1704892238620,-546811.48610118,0.0002298,2]
[311068133,1704892238629,-186.04615418,0.00022998,2]
[311068134,1704892238638,-155.45219313,0.00022998,2]
[311068135,1704892238647,-309.08429853,0.00022998,2]
[311068136,1704892238656,-1348.91535873,0.00022998,2]
[311068137,1704892238666,-471.35815675,0.00022998,2]
[311068138,1704892238675,-336.43129982,0.00022999,2]
[311068139,1704892238686,-155.0,0.00022999,2]
[311068140,1704892238696,-260.81261785,0.00022999,2]
[311068141,1704892238705,-155.0,0.00022999,2]
[311068142,1704892238714,-290.30432174,0.00022999,2]
[311068143,1704892238724,-1702.94991301,0.00022999,2]
[311068144,1704892238733,-237.12515196,0.00022999,2]
[311068145,1704892238742,-155.0,0.00022999,2]
[311068146,1704892238752,-233.96790281,0.00022999,2]
[311068147,1704892238762,-186.82277165,0.00022999,2]
[311068148,1704892238772,-542573.67647366,0.00023,2]
[311068149,1704892238784,-22400.0,0.00023,2]
[311068150,1704892238867,-368.85779183,0.00023,2]
[311068151,1704892238878,-445.51446,0.00023,2]
[311068152,1704892238889,-23499.9999999,0.00023,2]
[311068153,1704892238934,-687.69313003,0.00023,2]
[311068157,1704892238958,-8090.45315214,0.00023,2]
[311068159,1704892238969,-3579.49592,0.00023,2]
[311068161,1704892238981,-4921.95151,0.00023,2]
[311068163,1704892238992,-1417.03,0.00023,2]
[311068521,1704892242487,-159.00791907,0.00022773,2]
[311068524,1704892242497,-288.50208093,0.00023,2]
[311068582,1704892243049,-17941.7905767,0.00023,2]
[311068614,1704892243337,-844.72420107,0.00023,2]
[311068616,1704892243351,-22205.0,0.00023,2]
[311068631,1704892243497,-77.64247551,0.00023,2]
[311068632,1704892243515,-834.91963717,0.00023,2]
[311068633,1704892243526,-252258.45347906,0.00023,2]
[311068645,1704892243656,-5772.95350253,0.00023,2]
[311068648,1704892243679,-3139.51578875,0.00023,2]
[311068651,1704892243691,-4900.93999999,0.00023,2]
[311068654,1704892243714,-11838.65059956,0.00023,2]
[311068656,1704892243725,-2290.54728468,0.00023,2]
[311068658,1704892243736,-1705.84498595,0.00023,2]
[311068661,1704892243747,-2780.53177857,0.00023,2]
[311068663,1704892243759,-11839.07870585,0.00023,2]
[311068674,1704892243815,-2297.79500463,0.00023,2]
[311068678,1704892243829,-325489.71000019,0.00023,2]
[311068682,1704892243840,-110492.52,0.00023,2]
[311068685,1704892243853,-8441.92875755,0.00023,2]
[311068689,1704892243864,-5369.48845275,0.00023,2]
[311068693,1704892243883,-11881.37100517,0.00023,2]
[311068695,1704892243894,-802.779978,0.00023,2]
[311068697,1704892243906,-4481.7456,0.00023,2]
[311068699,1704892243918,-455.2300002,0.00023,2]
[311068702,1704892243929,-804.325,0.00023,2]
[311068704,1704892243940,-6023.58382061,0.00023,2]
[311068708,1704892243975,-631.15857409,0.00023,2]
[311068711,1704892243985,-1111.11334995,0.00023,2]
[311068713,1704892244002,-8911.0,0.00023,2]
[311068715,1704892244013,-1960.41210371,0.00023,2]
[311068718,1704892244024,-341.62518303,0.00023,2]
[311068720,1704892244035,-662.46188703,0.00023,2]
[311068722,1704892244046,-812.44322251,0.00023,2]
[311068724,1704892244057,-11865.22130663,0.00023,2]
[311068727,1704892244068,-250.74917374,0.00023,2]
[311068729,1704892244085,-1924.37074723,0.00023,2]
[311068731,1704892244097,-352522.24730164,0.00023,2]
[311068734,1704892244108,-44406.57996762,0.00023,2]
[311068738,1704892244135,-11596.9075542,0.00023,2]
[311068740,1704892244147,-3999.09214494,0.00023,2]
[311068743,1704892244170,-951.78231409,0.00023,2]
[311068746,1704892244182,-8962.42403873,0.00023,2]
[311068748,1704892244193,-2771.59418,0.00023,2]
[311068752,1704892244218,-9433.10052998,0.00023,2]
[311068835,1704892244993,1000.0,0.00022309,2]
[311068905,1704892245533,-935.67924295,0.00022999,2]
[311068907,1704892245542,-757.87465932,0.00022999,2]
[311068909,1704892245552,-4445.85856437,0.00023,2]
[311068911,1704892245563,-18600.0,0.00023,2]
[311068924,1704892245672,-345.12,0.00023,2]
[311068973,1704892246091,-2057.67270995,0.00023,2]
[311068976,1704892246105,-1850.58227869,0.00023,2]
[311068978,1704892246115,-3127.04243696,0.00023,2]
[311068980,1704892246126,-432.3925,0.00023,2]
[311068981,1704892246137,-1999.87677,0.00023,2]
[311068985,1704892246251,-916.93665996,0.00023,2]
[311068987,1704892246263,-830.77306489,0.00023,2]
[311068989,1704892246274,-27144.37743958,0.00023,2]
[311068993,1704892246301,-438.78142739,0.00023,2]
[311068995,1704892246313,-223623.2292337,0.00023,2]
[311068998,1704892246324,-10089.51257977,0.00023,2]
[311069000,1704892246337,-9314.45,0.00023,2]
[311069002,1704892246348,-831.86106,0.00023,2]
[311069004,1704892246359,-277.76,0.00023,2]
[311069007,1704892246371,-1341.6464117,0.00023,2]
[311069009,1704892246382,-1340.0202,0.00023,2]
[311069011,1704892246393,-751.08245963,0.00023,2]
[311069061,1704892246876,2553.16690227,0.00022079,2]
[311069065,1704892246900,632.73148408,0.00022079,2]
[311069452,1704892251031,377.41204463,0.00022999,10]
[311069596,1704892253158,150.0,0.00020468,2]
[311069597,1704892253180,150.0,0.00020468,2]
[311069598,1704892253202,150.0,0.00020468,2]
[311069599,1704892253226,109.19420109,0.00020468,2]
[311069600,1704892256022,40.80579891,0.00022,2]
[311069601,1704892256049,150.0,0.00022,2]
[311069602,1704892256070,29.09775307,0.00022,2]
[311069603,1704892262988,120.90224693,0.00022307,2]
[311069604,1704892263008,150.0,0.00022307,2]
[311069605,1704892263027,150.0,0.00022307,2]
[311069606,1704892263046,150.0,0.00022307,2]
[311069607,1704892263066,177.38210729,0.00022307,2]
[311069608,1704892263085,251.71564578,0.00022307,2]
[311069609,1704892264835,1449.79434603,0.00022077,2]
[311069610,1704892265104,599.999999,0.00029,30]
[311069611,1704892267660,-206.35807124,0.00023288,4]
[311069612,1704892267682,-267.92574375,0.00023288,4]
[311069613,1704892267703,-500.0,0.00023288,4]
[311069614,1704892267724,-25.71618501,0.00023288,4]
[311069616,1704892284994,1000.0,0.00022304,2]
[311069617,1704892303034,1000.0,0.00022304,2]
[311069618,1704892307907,-245.36168287,0.00023288,4]
[311069619,1704892325152,1000.0,0.00022304,2]
[311069620,1704892333637,157.63,0.00022198,2]
[311069621,1704892333842,157.63,0.00022363,2]
[311069622,1704892345041,1000.0,0.00022304,2]
[311069623,1704892361018,1000.0,0.00022305,2]
[311069624,1704892368477,3039.738507,0.00022401,2]
[311069625,1704892377045,1000.0,0.00022305,2]
[311069626,1704892377983,732.99,0.00021962,2]
[311069627,1704892397050,1000.0,0.00022305,2]
[311069628,1704892402582,2000.0,0.00021955,2]
[311069629,1704892416975,694.54,0.00020037,2]
[311069630,1704892417273,694.54,0.00022301,2]
[311069631,1704892419044,1000.0,0.00022085,2]
[311069632,1704892428152,3779.64,0.00021935,2]
[311069633,1704892438929,1000.0,0.00022085,2]
[311069634,1704892451304,3000.0,0.000225,2]
[311069635,1704892457018,1000.0,0.00022085,2]
[311069636,1704892457547,552.94,0.00021907,2]
[311069637,1704892464221,174.56,0.00022238,2]
[311069638,1704892475050,1000.0,0.00022085,2]
[311069639,1704892495032,1000.0,0.00022085,2]
[311069640,1704892511640,602.45,0.00021918,2]
[311069641,1704892513032,1000.0,0.00022085,2]
[311069642,1704892531167,1000.0,0.00022085,2]
[311069643,1704892547048,1000.0,0.00022085,2]
[311069644,1704892565657,527.38210729,0.00022499,2]
[311069645,1704892567066,1000.0,0.00022085,2]
[311069646,1704892570958,155.0,0.00022499,2]
[311069647,1704892572202,-345.53730056,0.000225,2]
[311069648,1704892572224,-254.46269944,0.00022501,2]
[311069649,1704892585042,1000.0,0.00022085,2]
[311069650,1704892603040,1000.0,0.00022085,2]
[311069651,1704892610861,293.23,0.00022238,2]
[311069652,1704892611067,293.23,0.00022356,2]
[311069653,1704892611281,293.23,0.00022473,2]
[311069654,1704892616131,163.1,0.0002212,2]
[311069655,1704892619036,1000.0,0.00022085,2]
[311069656,1704892639093,1000.0,0.00022085,2]
[311069657,1704892659054,1000.0,0.00022085,2]
[311069658,1704892660853,150.0,0.0002189,2]
[311069659,1704892675267,1000.0,0.00022085,2]
[311069660,1704892685072,200.0,0.00021912,2]
[311069661,1704892693054,1000.0,0.00022085,2]
[311069662,1704892715055,1000.0,0.00021863,2]
[311069663,1704892735106,1000.0,0.00021863,2]
[311069664,1704892751080,1000.0,0.00021863,2]
[311069665,1704892764900,754.63831713,0.00021863,5]
[311069666,1704892764931,520.01572247,0.00021863,5]
[311069667,1704892771077,1000.0,0.00021863,2]
[311069668,1704892776022,250.0,0.00021879,2]
[311069669,1704892791070,1000.0,0.00021863,2]
[311069670,1704892794833,23900.0,0.00021912,2]
[311069671,1704892807068,1000.0,0.00021863,2]
[311069672,1704892829127,1000.0,0.00021863,2]
[311069673,1704892843394,2000.0,0.00021876,2]
[311069674,1704892844144,413.6,0.00021876,2]
[311069675,1704892845100,1000.0,0.00021863,2]
[311069676,1704892854013,157.63,0.00022045,2]
[311069677,1704892854072,157.63,0.00022275,2]
[311069678,1704892865082,1000.0,0.00021863,2]
[311069679,1704892875799,625.08,0.00019994,2]
[311069680,1704892876045,625.08,0.00022258,2]
[311069681,1704892881151,850.0,0.00021863,2]
[311069682,1704892907368,347.10125044,0.000225,2]
[311069683,1704892912443,221.79,0.00021912,2]
[311069684,1704892929959,516.07,0.00021897,2]
[311069685,1704893038877,169.87,0.00022108,2]
[311069686,1704893074630,301.22,0.00021887,2]
[311069687,1704893080873,150.0,0.00022498,2]
[311069688,1704893089945,4040.04081502,0.00031,30]
[311069689,1704893114994,250.0,0.00022,2]
[311069690,1704893117477,300.0,0.00022,2]
[311069691,1704893128052,190.66,0.00021932,2]
[311069704,1704893196637,155.81571365,0.0002249,2]
[311069965,1704893255233,23900.0,0.0002184,2]
[311069966,1704893264005,2000.0,0.0002184,2]
[311069967,1704893292753,4508.66460001,0.00031,45]
[311069968,1704893329055,157.63,0.0002198,2]
[311069969,1704893329473,157.63,0.00022362,2]
[311069970,1704893366403,562.57,0.00019912,2]
[311069971,1704893366631,562.57,0.00022176,2]
[311069972,1704893370476,174.56,0.00021877,2]
[311069974,1704893413973,481.66,0.00021836,2]
[311069975,1704893425725,166.68,0.00021829,2]
[311069995,1704893431645,-2136.08960768,0.00022502,2]
[311069996,1704893431654,-417.43921408,0.00022503,2]
[311069997,1704893431664,-155.81571364,0.00022524,2]
[311069998,1704893431673,-63.10232199,0.00022558,2]
[311069999,1704893431720,-92.71339165,0.00022558,2]
[311070000,1704893431730,-293.23,0.0002259,2]
[311070001,1704893431739,-1002.31701174,0.0002259,2]
[311070002,1704893431749,-155.81571364,0.00022593,2]
[311070003,1704893431759,-155.81571364,0.00022627,2]